fUSD/lending_fUSD_20260517
["ID","MTS","AMOUNT","RATE_DAILY","PERIOD"]
[422473731,1778975432000,-823.0,0.00020459,2]
[422473732,1778975432000,-200.0,0.00020817,2]
[422473725,1778975432000,-500.0,0.00019808,2]
[422473728,1778975432000,-200.0,0.00020269,2]
[422473727,1778975432000,-153.0,0.0002,2]
[422473726,1778975432000,-207.0,0.0002,2]
[422473729,1778975432000,-2586.85809042,0.00020269,2]
[422473730,1778975432000,-150.0,0.00020458,2]
[422473724,1778975432000,-2494.55939289,0.00019721,2]
[422473723,1778975432000,-200.0,0.00019721,2]
[422473722,1778975432000,-500.0,0.0001972,2]
[422473720,1778975432000,-2405.55389864,0.00019173,2]
[422473721,1778975432000,-161.48105996,0.00019194,2]
[422473718,1778975432000,-587.0,0.00018706,2]
[422473716,1778975432000,-200.0,0.00018625,2]
[422473700,1778975432000,-151.0,0.00016981,2]
[422473719,1778975432000,-200.0,0.00019173,2]
[422473717,1778975432000,-2319.72410669,0.00018625,2]
[422473703,1778975432000,-151.0,0.00016981,2]
[422473706,1778975432000,-500.0,0.00016981,2]
[422473702,1778975432000,-500.0,0.00016981,2]
[422473704,1778975432000,-500.0,0.00016981,2]
[422473709,1778975432000,-420.0,0.00017103,2]
[422473707,1778975432000,-440.13154347,0.00016981,2]
[422473711,1778975432000,-2157.14243826,0.00017529,2]
[422473708,1778975432000,-2080.17592889,0.00016981,2]
[422473712,1778975432000,-150.99,0.00017529,2]
[422473713,1778975432000,-200.0,0.00018077,2]
[422473715,1778975432000,-267.0,0.000185,2]
[422473714,1778975432000,-2236.95670848,0.00018077,2]
[422473710,1778975432000,-200.0,0.00017529,2]
[422473767,1778975433000,-207.0,0.00024,2]
[422473760,1778975433000,-2000.0,0.0002297,2]
[422473761,1778975433000,-207.0,0.00023,2]
[422473759,1778975433000,-5000.0,0.00022949,2]
[422473762,1778975433000,-164.18200703,0.00023,2]
[422473765,1778975433000,-200.0,0.00023244,2]
[422473764,1778975433000,-200.0,0.00023112,2]
[422473763,1778975433000,-200.0,0.00023009,2]
[422473766,1778975433000,-150.0,0.00023683,2]
[422473775,1778975433000,-208.44072055,0.00024824,2]
[422473770,1778975433000,-164.89,0.00024596,2]
[422473771,1778975433000,-1000.0,0.00024658,2]
[422473772,1778975433000,-162.05,0.00024658,2]
[422473774,1778975433000,-215.03962261,0.00024824,2]
[422473773,1778975433000,-162.03,0.00024658,2]
[422473757,1778975433000,-161.48105996,0.00022849,2]
[422473776,1778975433000,-160.0,0.00024824,2]
[422473769,1778975433000,-1613.0,0.00024474,2]
[422473777,1778975433000,-176.2988,0.00024867,2]
[422473781,1778975433000,-500.0,0.00025044,2]
[422473768,1778975433000,-500.0,0.00024137,2]
[422473758,1778975433000,-296.44,0.00022883,2]
[422473748,1778975433000,-153.0,0.00022,2]
[422473756,1778975433000,-793.68,0.00022691,2]
[422473734,1778975433000,-500.0,0.00020877,2]
[422473733,1778975433000,-2682.57183977,0.00020817,2]
[422473736,1778975433000,-153.0,0.00021,2]
[422473735,1778975433000,-207.0,0.00021,2]
[422473737,1778975433000,-200.0,0.00021365,2]
[422473738,1778975433000,-2781.82699784,0.00021365,2]
[422473742,1778975433000,-500.0,0.00021753,2]
[422473739,1778975433000,-500.0,0.00021425,2]
[422473780,1778975433000,-211.0,0.00025,2]
[422473740,1778975433000,-150.0,0.00021481,2]
[422473743,1778975433000,-172.81799297,0.000218,2]
[422473745,1778975433000,-200.0,0.00021913,2]
[422473746,1778975433000,-2884.75459676,0.00021913,2]
[422473744,1778975433000,-171.26953422,0.00021876,3]
[422473747,1778975433000,-207.0,0.00022,2]
[422473749,1778975433000,-1152.0,0.00022377,2]
[422473750,1778975433000,-500.0,0.00022459,2]
[422473753,1778975433000,-150.0,0.00022555,2]
[422473752,1778975433000,-2991.49051684,0.00022461,2]
[422473754,1778975433000,-1440.88,0.00022661,2]
[422473751,1778975433000,-200.0,0.00022461,2]
[422473755,1778975433000,-189.56,0.00022682,2]
[422473741,1778975433000,-207.0,0.00021602,3]
[422473778,1778975433000,-162.05,0.00024946,7]
[422473783,1778975433000,-99095.1757,0.0002516,2]
[422473810,1778975433000,-500.0,0.00025359,2]
[422473811,1778975433000,-500.0,0.00025359,2]
[422473808,1778975433000,-500.0,0.00025359,2]
[422473812,1778975433000,-500.0,0.00025359,2]
[422473813,1778975433000,-500.0,0.00025359,2]
[422473814,1778975433000,-500.0,0.00025359,2]
[422473816,1778975433000,-500.0,0.00025359,2]
[422473821,1778975433000,-308.25483351,0.00025359,2]
[422473819,1778975433000,-308.25483351,0.00025359,2]
[422473820,1778975433000,-500.0,0.00025359,2]
[422473818,1778975433000,-500.0,0.00025359,2]
[422473815,1778975433000,-454.85870032,0.00025359,2]
[422473817,1778975433000,-308.25483351,0.00025359,2]
[422473779,1778975433000,-162.03,0.00024946,7]
[422473824,1778975433000,-500.0,0.00025359,2]
[422473822,1778975433000,-500.0,0.00025359,2]
[422473827,1778975433000,-308.25483351,0.00025359,2]
[422473825,1778975433000,-308.25483351,0.00025359,2]
[422473826,1778975433000,-500.0,0.00025359,2]
[422473828,1778975433000,-364897.14252255,0.0002536,2]
[422473829,1778975433000,-380.0,0.0002536,2]
[422473806,1778975433000,-500.0,0.00025359,2]
[422473809,1778975433000,-500.0,0.00025359,2]
[422473823,1778975433000,-308.25483351,0.00025359,2]
[422473805,1778975433000,-500.0,0.00025359,2]
[422473782,1778975433000,-4168.5776,0.0002516,2]
[422473788,1778975433000,-6801.3071,0.0002526,2]
[422473784,1778975433000,-524.40294489,0.00025198,2]
[422473785,1778975433000,-162.05,0.00025234,30]
[422473786,1778975433000,-162.03,0.00025234,30]
[422473787,1778975433000,-2000.0,0.0002526,2]
[422473789,1778975433000,-2500.0,0.0002526,2]
[422473790,1778975433000,-5000.0,0.0002526,2]
[422473807,1778975433000,-500.0,0.00025359,2]
[422473798,1778975433000,-500.0,0.00025359,2]
[422473799,1778975433000,-500.0,0.00025359,2]
[422473791,1778975433000,-10000.0,0.0002531,2]
[422473793,1778975433000,-1493.07807747,0.00025315,2]
[422473795,1778975433000,-190.54613769,0.00025315,2]
[422473794,1778975433000,-6176.38660698,0.00025315,2]
[422473796,1778975433000,-197.87640164,0.0002535,2]
[422473792,1778975433000,-193.95096607,0.00025315,2]
[422473797,1778975433000,-500.0,0.00025359,2]
[422473802,1778975433000,-522.87534533,0.00025359,2]
[422473801,1778975433000,-500.0,0.00025359,2]
[422473803,1778975433000,-500.0,0.00025359,2]
[422473804,1778975433000,-500.0,0.00025359,2]
[422473800,1778975433000,-273.7887623,0.00025359,2]
[422473861,1778975443000,-2098.28914556,0.0002506,2]
[422473860,1778975443000,-503.00569616,0.0002506,2]
[422473869,1778975446000,-1000.0,0.0002506,2]
[422473868,1778975446000,-1575.22342702,0.0002506,2]
[422473872,1778975447000,-14548.28979864,0.0002536,2]
[422473870,1778975447000,-72598.77533126,0.0002506,2]
[422473871,1778975447000,-2500.0,0.0002521,2]
[422473874,1778975473000,-158.0,0.0002,2]
[422473875,1778975551000,-1536.25506992,0.000205,2]
[422473878,1778975843000,-152.0,0.0002,2]
[422473879,1778975860000,-250.0,0.0002025,2]
[422473880,1778975996000,2000.0,0.0002951,120]
[422473881,1778976151000,-209.649419,0.00014925,2]
[422473882,1778976167000,-10000.01,0.00015,2]
[422473887,1778976343000,-23200.0,0.00015,2]
[422473885,1778976343000,-300.0,0.00014999,2]
[422473886,1778976343000,-1200.0,0.00014999,2]
[422473884,1778976343000,-300.0,0.00014999,2]
[422473888,1778976345000,-4027.8691092,0.00015,2]
[422473889,1778976345000,-20972.1308908,0.00015,2]
[422473890,1778976345000,-25000.0,0.00015,2]
[422473891,1778976346000,-25000.0,0.00015,2]
[422473892,1778976413000,-424.83720292,0.00015,2]
[422473894,1778976540000,1000.0,0.00030128,120]
[422473903,1778976631000,-300.0,0.00016499,2]
[422473896,1778976631000,-900.10494811,0.00014985,2]
[422473897,1778976631000,-152.67673311,0.00014985,2]
[422473898,1778976631000,-1651.38654898,0.00015,2]
[422473900,1778976631000,-906.78256907,0.00015,2]
[422473901,1778976631000,-5617.88283139,0.00015,2]
[422473899,1778976631000,-1060.14397087,0.00015,2]
[422473904,1778976631000,-229.0,0.00016499,2]
[422473902,1778976631000,-250.0,0.00016484,2]
[422473909,1778976631000,-1220.88059365,0.00019892,2]
[422473906,1778976631000,-250.0,0.000165,2]
[422473907,1778976631000,-250.0,0.000165,2]
[422473908,1778976631000,-11300.857129,0.00019892,2]
[422473914,1778976631000,-1668.97568377,0.00019892,2]
[422473910,1778976631000,-56575.03306752,0.00019892,2]
[422473912,1778976631000,-1405.13503512,0.00019892,2]
[422473911,1778976631000,-27425.49368205,0.00019892,2]
[422473913,1778976631000,-1600.33,0.00019892,2]
[422473905,1778976631000,-2500.0,0.000165,2]
[422473919,1778976637000,-1982.78637072,0.00019892,2]
[422473918,1778976637000,-1043.35,0.00019892,2]
[422473920,1778976637000,-2011.17962667,0.00019892,2]
[422473917,1778976637000,-5090.88593671,0.00019892,2]
[422473923,1778976637000,-684.44111521,0.00019892,2]
[422473924,1778976637000,-344.73477009,0.00019892,2]
[422473922,1778976637000,-284.14433268,0.00019892,2]
[422473921,1778976637000,-1355.04211572,0.00019892,2]
[422473930,1778976640000,-2343.0,0.00019892,2]
[422473929,1778976640000,-414.751446,0.00019892,2]
[422473931,1778976640000,-463.84411009,0.00019892,2]
[422473928,1778976640000,-1441.46135276,0.00019892,2]
[422473955,1778976642000,-3184.38901987,0.00019892,2]
[422473980,1778976821000,2000.0,0.0002973,120]
[422473981,1778976900000,-500.0,0.000149,2]
[422473982,1778976900000,-408.0066,0.000149,2]
[422473984,1778976900000,-263.50783151,0.00015,2]
[422473985,1778976900000,-4065.48350973,0.00015,2]
[422473983,1778976900000,-2251.6526331,0.00015,2]
[422473987,1778976901000,1200.0,0.00014999,2]
[422473986,1778976901000,157.0,0.00014999,2]
[422473989,1778977010000,220.41,0.00029327,120]
[422473990,1778977060000,500.0,0.00027938,120]
[422473991,1778977060000,500.0,0.00028511,120]
[422473992,1778977060000,500.0,0.00028511,120]
[422473994,1778977061000,500.0,0.00028819,120]
[422473993,1778977061000,500.0,0.00028511,120]
[422473995,1778977100000,500.0,0.00027938,120]
[422473999,1778977101000,500.0,0.00028819,120]
[422473998,1778977101000,500.0,0.00028511,120]
[422473997,1778977101000,500.0,0.00028511,120]
[422473996,1778977101000,500.0,0.00028511,120]
[422474003,1778977251000,500.0,0.00028511,120]
[422474002,1778977251000,500.0,0.00028511,120]
[422474001,1778977251000,500.0,0.00027938,120]
[422474005,1778977252000,500.0,0.00028819,120]
[422474004,1778977252000,500.0,0.00028511,120]
[422474006,1778977258000,500.0,0.00027938,120]
[422474007,1778977259000,500.0,0.00028511,120]
[422474008,1778977259000,500.0,0.00028511,120]
[422474009,1778977259000,500.0,0.00028511,120]
[422474010,1778977259000,500.0,0.00028629,120]
[422474012,1778977640000,500.0,0.00027938,120]
[422474016,1778977641000,500.0,0.00028629,120]
[422474015,1778977641000,500.0,0.00028511,120]
[422474014,1778977641000,500.0,0.00028511,120]
[422474013,1778977641000,500.0,0.00028511,120]
[422474017,1778977659000,530.09266044,0.00027938,120]
[422474018,1778977740000,1000.0,0.00030127,120]
[422474025,1778977831000,-250.0,0.00017086,2]
[422474024,1778977831000,-300.0,0.000169,6]
[422474027,1778977831000,-328.40956693,0.00017371,2]
[422474026,1778977831000,-171.59043307,0.00017273,2]
[422474028,1778977831000,-400.40965757,0.00017371,2]
[422474029,1778977831000,-471.1807755,0.00017371,2]
[422474033,1778977831000,-500.0,0.00017372,2]
[422474031,1778977831000,-444.37588763,0.00017372,2]
[422474039,1778977831000,-44915.18142579,0.00017373,2]
[422474030,1778977831000,-55.62411237,0.00017372,2]
[422474034,1778977831000,-55.98411237,0.00017372,2]
[422474036,1778977831000,-1047.46411237,0.00017373,2]
[422474035,1778977831000,-199.01588763,0.00017372,2]
[422474037,1778977831000,-4578.38383607,0.00017373,2]
[422474038,1778977831000,-8296.68609926,0.00017373,2]
[422474032,1778977831000,-500.0,0.00017372,2]
[422474040,1778977836000,2000.0,0.0002755,120]
[422474043,1778977837000,-419.532818,0.00017273,2]
[422474045,1778977837000,-32052.07979357,0.00017373,2]
[422474044,1778977837000,-1046.85526459,0.00017373,2]
[422474090,1778977838000,-997.1349605,0.00019492,2]
[422474085,1778977838000,-2080.17592889,0.00019187,2]
[422474079,1778977838000,-151.0,0.00019187,2]
[422474078,1778977838000,-151.0,0.00019187,2]
[422474076,1778977838000,-151.0,0.00019187,2]
[422474100,1778977838000,-502.135492,0.00019616,2]
[422474075,1778977838000,-151.0,0.00019187,2]
[422474074,1778977838000,-151.0,0.00019187,2]
[422474072,1778977838000,-151.0,0.00019187,2]
[422474089,1778977838000,-151.0,0.00019489,2]
[422474077,1778977838000,-151.0,0.00019187,2]
[422474091,1778977838000,-220.41,0.00019551,2]
[422474097,1778977838000,-207.848846,0.00019616,2]
[422474087,1778977838000,-212.26,0.00019466,2]
[422474095,1778977838000,-207.848846,0.00019616,2]
[422474093,1778977838000,-151.0,0.00019616,2]
[422474094,1778977838000,-207.848846,0.00019616,2]
[422474083,1778977838000,-259.0814597,0.00019187,2]
[422474098,1778977838000,-502.135492,0.00019616,2]
[422474096,1778977838000,-207.848846,0.00019616,2]
[422474110,1778977838000,-1802.555506,0.00019616,2]
[422474099,1778977838000,-502.135492,0.00019616,2]
[422474108,1778977838000,-178.756601,0.00019616,2]
[422474107,1778977838000,-178.756601,0.00019616,2]
[422474092,1778977838000,-5405.17326936,0.00019572,2]
[422474081,1778977838000,-151.0,0.00019187,2]
[422474064,1778977838000,-200.0,0.00018706,2]
[422474065,1778977838000,-7157.18,0.00018738,2]
[422474046,1778977838000,-2038.5579929,0.00017373,2]
[422474047,1778977838000,-289.11111019,0.00017373,2]
[422474049,1778977838000,-2257.08759166,0.00017373,2]
[422474048,1778977838000,-741.50001,0.00017373,2]
[422474052,1778977838000,-1430.60904027,0.00017658,2]
[422474050,1778977838000,-763029.2081976,0.00017373,2]
[422474057,1778977838000,-200.0,0.00018422,2]
[422474055,1778977838000,-462.19,0.00018306,2]
[422474054,1778977838000,-500.0,0.00018225,2]
[422474053,1778977838000,-1019.27714652,0.00018144,2]
[422474051,1778977838000,-121991.5910204,0.00017373,2]
[422474056,1778977838000,-2000.0,0.00018367,2]
[422474071,1778977838000,-500.0,0.00019068,2]
[422474070,1778977838000,-480.0,0.0001906,2]
[422474069,1778977838000,-1029.84,0.00018992,2]
[422474059,1778977838000,-500.0,0.00018461,2]
[422474067,1778977838000,-212.26,0.00018992,2]
[422474060,1778977838000,-150.99,0.00018533,2]
[422474058,1778977838000,-1852.42,0.00018422,2]
[422474066,1778977838000,-11105.1,0.00018805,2]
[422474063,1778977838000,-467.2,0.00018621,2]
[422474061,1778977838000,-657.4,0.0001858,2]
[422474062,1778977838000,-250.0,0.0001859,2]
[422474073,1778977838000,-151.0,0.00019187,2]
[422474103,1778977838000,-151.0,0.00019616,2]
[422474113,1778977838000,-1802.555506,0.00019616,2]
[422474102,1778977838000,-502.135492,0.00019616,2]
[422474137,1778977838000,-151.0,0.000197,2]
[422474138,1778977838000,-151.0,0.000197,2]
[422474134,1778977838000,-500.0,0.00019699,2]
[422474139,1778977838000,-151.0,0.000197,2]
[422474143,1778977838000,-897.579213,0.000197,2]
[422474141,1778977838000,-157.278708,0.000197,2]
[422474136,1778977838000,-126170.09247984,0.000197,2]
[422474144,1778977838000,-897.579213,0.000197,2]
[422474147,1778977838000,-207.848846,0.000197,2]
[422474146,1778977838000,-207.848846,0.000197,2]
[422474145,1778977838000,-207.848846,0.000197,2]
[422474140,1778977838000,-897.579213,0.000197,2]
[422474149,1778977838000,-502.135492,0.000197,2]
[422474150,1778977838000,-502.135492,0.000197,2]
[422474156,1778977838000,-151.0,0.000197,2]
[422474158,1778977838000,-178.756601,0.000197,2]
[422474154,1778977838000,-151.0,0.000197,2]
[422474151,1778977838000,-502.135492,0.000197,2]
[422474148,1778977838000,-207.848846,0.000197,2]
[422474153,1778977838000,-502.135492,0.000197,2]
[422474152,1778977838000,-151.0,0.000197,2]
[422474155,1778977838000,-151.0,0.000197,2]
[422474101,1778977838000,-151.0,0.00019616,2]
[422474157,1778977838000,-178.756601,0.000197,2]
[422474159,1778977838000,-178.756601,0.000197,2]
[422474135,1778977838000,-500.0,0.00019699,2]
[422474142,1778977838000,-897.579213,0.000197,2]
[422474125,1778977838000,-624.9211601,0.0001969,2]
[422474105,1778977838000,-151.0,0.00019616,2]
[422474130,1778977838000,-375.38526683,0.00019699,2]
[422474104,1778977838000,-151.0,0.00019616,2]
[422474109,1778977838000,-178.756601,0.00019616,2]
[422474111,1778977838000,-1802.555506,0.00019616,2]
[422474114,1778977838000,-151.0,0.00019616,2]
[422474115,1778977838000,-151.0,0.00019616,2]
[422474112,1778977838000,-1802.555506,0.00019616,2]
[422474119,1778977838000,-151.0,0.00019616,2]
[422474117,1778977838000,-249.303002,0.00019616,2]
[422474118,1778977838000,-192.580129,0.00019616,2]
[422474116,1778977838000,-151.0,0.00019616,2]
[422474106,1778977838000,-178.756601,0.00019616,2]
[422474121,1778977838000,-151.0,0.00019616,2]
[422474120,1778977838000,-192.580129,0.00019616,2]
[422474133,1778977838000,-500.0,0.00019699,2]
[422474124,1778977838000,-192.580129,0.00019616,2]
[422474123,1778977838000,-151.0,0.00019616,2]
[422474126,1778977838000,-500.0,0.00019699,2]
[422474127,1778977838000,-500.0,0.00019699,2]
[422474132,1778977838000,-500.0,0.00019699,2]
[422474129,1778977838000,-511.57621509,0.00019699,2]
[422474131,1778977838000,-500.0,0.00019699,2]
[422474122,1778977838000,-192.580129,0.00019616,2]
[422474128,1778977838000,-500.0,0.00019699,2]
[422474204,1778977839000,-500.0,0.00019891,2]
[422474211,1778977839000,-500.0,0.00019891,2]
[422474212,1778977839000,-500.0,0.00019891,2]
[422474200,1778977839000,-500.0,0.00019891,2]
[422474203,1778977839000,-500.0,0.00019891,2]
[422474193,1778977839000,-249.29936447,0.00019891,2]
[422474197,1778977839000,-500.0,0.00019891,2]
[422474198,1778977839000,-500.0,0.00019891,2]
[422474199,1778977839000,-500.0,0.00019891,2]
[422474194,1778977839000,-500.0,0.00019891,2]
[422474202,1778977839000,-500.0,0.00019891,2]
[422474201,1778977839000,-500.0,0.00019891,2]
[422474195,1778977839000,-524.74495617,0.00019891,2]
[422474219,1778977839000,-151.0,0.00019892,2]
[422474210,1778977839000,-500.0,0.00019891,2]
[422474209,1778977839000,-500.0,0.00019891,2]
[422474206,1778977839000,-500.0,0.00019891,2]
[422474208,1778977839000,-500.0,0.00019891,2]
[422474207,1778977839000,-500.0,0.00019891,2]
[422474216,1778977839000,-500.0,0.00019891,2]
[422474215,1778977839000,-500.0,0.00019891,2]
[422474214,1778977839000,-500.0,0.00019891,2]
[422474223,1778977839000,-151.0,0.00019892,2]
[422474225,1778977839000,-151.0,0.00019892,2]
[422474218,1778977839000,-151.0,0.00019892,2]
[422474213,1778977839000,-500.0,0.00019891,2]
[422474221,1778977839000,-151.0,0.00019892,2]
[422474192,1778977839000,-500.0,0.00019891,2]
[422474205,1778977839000,-500.0,0.00019891,2]
[422474191,1778977839000,-500.0,0.00019891,2]
[422474166,1778977839000,-151.0,0.000197,2]
[422474189,1778977839000,-500.0,0.00019891,2]
[422474217,1778977839000,-151.0,0.00019892,2]
[422474160,1778977839000,-178.756601,0.000197,2]
[422474161,1778977839000,-1802.555506,0.000197,2]
[422474163,1778977839000,-1802.555506,0.000197,2]
[422474162,1778977839000,-1802.555506,0.000197,2]
[422474164,1778977839000,-1802.555506,0.000197,2]
[422474173,1778977839000,-151.0,0.000197,2]
[422474165,1778977839000,-151.0,0.000197,2]
[422474174,1778977839000,-192.580129,0.000197,2]
[422474175,1778977839000,-2157.14243826,0.00019735,2]
[422474167,1778977839000,-151.0,0.000197,2]
[422474170,1778977839000,-192.580129,0.000197,2]
[422474169,1778977839000,-151.0,0.000197,2]
[422474172,1778977839000,-192.580129,0.000197,2]
[422474171,1778977839000,-151.0,0.000197,2]
[422474176,1778977839000,-4189.16668026,0.0001978,2]
[422474179,1778977839000,-151.0,0.00019889,2]
[422474178,1778977839000,-190.01670168,0.00019793,2]
[422474183,1778977839000,-224.76392726,0.0001989,2]
[422474177,1778977839000,-450.0,0.00019792,2]
[422474180,1778977839000,-151.0,0.00019889,2]
[422474181,1778977839000,-151.0,0.00019889,2]
[422474186,1778977839000,-500.0,0.00019891,2]
[422474182,1778977839000,-500.0,0.0001989,2]
[422474184,1778977839000,-500.0,0.00019891,2]
[422474185,1778977839000,-500.0,0.00019891,2]
[422474187,1778977839000,-500.0,0.00019891,2]
[422474188,1778977839000,-500.0,0.00019891,2]
[422474190,1778977839000,-500.0,0.00019891,2]
[422474196,1778977839000,-500.0,0.00019891,2]
[422474224,1778977839000,-151.0,0.00019892,2]
[422474168,1778977839000,-192.580129,0.000197,2]
[422474222,1778977839000,-151.0,0.00019892,2]
[422474260,1778977839000,-502.135492,0.0002,2]
[422474259,1778977839000,-265.0,0.0002,2]
[422474261,1778977839000,-502.135492,0.0002,2]
[422474263,1778977839000,-151.0,0.0002,2]
[422474258,1778977839000,-207.848846,0.0002,2]
[422474262,1778977839000,-502.135492,0.0002,2]
[422474267,1778977839000,-151.0,0.0002,2]
[422474275,1778977839000,-1802.555506,0.0002,2]
[422474277,1778977839000,-151.0,0.0002,2]
[422474273,1778977839000,-1802.555506,0.0002,2]
[422474269,1778977839000,-178.756601,0.0002,2]
[422474270,1778977839000,-178.756601,0.0002,2]
[422474278,1778977839000,-151.0,0.0002,2]
[422474268,1778977839000,-178.756601,0.0002,2]
[422474272,1778977839000,-158.0,0.0002,2]
[422474266,1778977839000,-151.0,0.0002,2]
[422474276,1778977839000,-1802.555506,0.0002,2]
[422474271,1778977839000,-178.756601,0.0002,2]
[422474274,1778977839000,-1802.555506,0.0002,2]
[422474279,1778977839000,-151.0,0.0002,2]
[422474282,1778977839000,-192.580129,0.0002,2]
[422474280,1778977839000,-192.580129,0.0002,2]
[422474283,1778977839000,-151.0,0.0002,2]
[422474281,1778977839000,-151.0,0.0002,2]
[422474285,1778977839000,-200.552298,0.0002,2]
[422474284,1778977839000,-192.580129,0.0002,2]
[422474286,1778977839000,-1430.60904024,0.00020076,2]
[422474288,1778977839000,-212.26,0.00020416,2]
[422474220,1778977839000,-151.0,0.00019892,2]
[422474265,1778977839000,-151.0,0.0002,2]
[422474264,1778977839000,-502.135492,0.0002,2]
[422474287,1778977839000,-1577.70216396,0.00020283,2]
[422474257,1778977839000,-207.848846,0.0002,2]
[422474254,1778977839000,-598.0,0.0002,2]
[422474226,1778977839000,-157.848747,0.00019892,2]
[422474230,1778977839000,-151.0,0.00019892,2]
[422474234,1778977839000,-199.293253,0.00019892,2]
[422474236,1778977839000,-700.0,0.000199,7]
[422474235,1778977839000,-199.293253,0.00019892,2]
[422474232,1778977839000,-199.293253,0.00019892,2]
[422474228,1778977839000,-151.0,0.00019892,2]
[422474233,1778977839000,-199.293253,0.00019892,2]
[422474227,1778977839000,-151.0,0.00019892,2]
[422474238,1778977839000,-212.26,0.00019941,2]
[422474239,1778977839000,-552.7858693,0.00019973,2]
[422474237,1778977839000,-25639.00267108,0.00019933,2]
[422474240,1778977839000,-572.20866067,0.0002,2]
[422474229,1778977839000,-151.0,0.00019892,2]
[422474243,1778977839000,-156.22099,0.0002,2]
[422474255,1778977839000,-207.848846,0.0002,2]
[422474256,1778977839000,-207.848846,0.0002,2]
[422474253,1778977839000,-897.579213,0.0002,2]
[422474250,1778977839000,-897.579213,0.0002,2]
[422474241,1778977839000,-5110.1092181,0.0002,2]
[422474247,1778977839000,-151.0,0.0002,2]
[422474248,1778977839000,-151.0,0.0002,2]
[422474245,1778977839000,-156.22099,0.0002,2]
[422474246,1778977839000,-156.22099,0.0002,2]
[422474244,1778977839000,-156.22099,0.0002,2]
[422474242,1778977839000,-152.0,0.0002,2]
[422474251,1778977839000,-897.579213,0.0002,2]
[422474252,1778977839000,-897.579213,0.0002,2]
[422474249,1778977839000,-151.0,0.0002,2]
[422474332,1778977840000,-160.0,0.00024794,2]
[422474329,1778977840000,-151.0,0.00024658,2]
[422474327,1778977840000,-151.0,0.00024658,2]
[422474328,1778977840000,-151.0,0.00024658,2]
[422474330,1778977840000,-215.03962261,0.00024794,2]
[422474324,1778977840000,-1000.0,0.00024658,2]
[422474325,1778977840000,-151.0,0.00024658,2]
[422474323,1778977840000,-151.0,0.00024658,2]
[422474331,1778977840000,-208.44072055,0.00024794,2]
[422474322,1778977840000,-151.0,0.00024658,2]
[422474319,1778977840000,-199.293253,0.00023759,2]
[422474326,1778977840000,-151.0,0.00024658,2]
[422474338,1778977840000,-151.0,0.000248,2]
[422474339,1778977840000,-151.0,0.000248,2]
[422474337,1778977840000,-151.0,0.000248,2]
[422474336,1778977840000,-151.0,0.000248,2]
[422474334,1778977840000,-151.0,0.000248,2]
[422474333,1778977840000,-151.0,0.000248,2]
[422474341,1778977840000,-151.0,0.00024807,2]
[422474342,1778977840000,-151.0,0.00024807,2]
[422474340,1778977840000,-328.26624352,0.00024801,2]
[422474354,1778977840000,-207.848846,0.00024901,2]
[422474344,1778977840000,-1100.0,0.000249,9]
[422474356,1778977840000,-207.848846,0.00024901,2]